fUST/lending_fUST_20250220
["ID","MTS","AMOUNT","RATE_DAILY","PERIOD"]
[353760425,1740015049054,-500.0,0.00014273,2]
[353760426,1740015049064,-698.4,0.00014273,2]
[353760427,1740015049074,-545.02,0.00014273,2]
[353760428,1740015049088,-994.39,0.00014273,2]
[353760429,1740015049098,-1691.41,0.00014273,2]
[353760430,1740015049108,-1136.71,0.00014273,2]
[353760431,1740015049118,-500.0,0.00014273,2]
[353760432,1740015049129,-620.63,0.00014273,2]
[353760433,1740015049140,-500.0,0.00014273,2]
[353760434,1740015049150,-973.16,0.00014273,2]
[353760435,1740015049161,-500.0,0.00014273,2]
[353760436,1740015049171,-328.06384719,0.00014273,2]
[353760437,1740015049181,-550.8,0.00014273,2]
[353760438,1740015049191,-513.7,0.00014273,2]
[353760439,1740015049201,-519.93,0.00014273,2]
[353760440,1740015049211,-4857.49,0.00014273,2]
[353760441,1740015049221,-500.0,0.00014273,2]
[353760442,1740015049231,-500.0,0.00014273,2]
[353760443,1740015049241,-312.70529199,0.00014273,2]
[353760444,1740015049251,-1351.54,0.00014273,2]
[353760445,1740015049261,-1123.19,0.00014273,2]
[353760446,1740015049271,-500.0,0.00014273,2]
[353760447,1740015049281,-1431.71,0.00014273,2]
[353760448,1740015049291,-3706.13,0.00014273,2]
[353760449,1740015049300,-748.02,0.00014273,2]
[353760450,1740015049310,-500.0,0.00014273,2]
[353760451,1740015049320,-682.42,0.00014273,2]
[353760452,1740015049330,-209.0,0.00014332,2]
[353760453,1740015049340,-209.0,0.00014332,2]
[353760454,1740015049350,-209.0,0.00014332,2]
[353760455,1740015049359,-209.0,0.00014332,2]
[353760456,1740015049369,-209.0,0.00014332,2]
[353760457,1740015049379,-209.0,0.00014332,2]
[353760458,1740015049390,-209.0,0.00014332,2]
[353760459,1740015049399,-209.0,0.00014332,2]
[353760460,1740015049409,-209.0,0.00014332,2]
[353760461,1740015049418,-209.0,0.00014332,2]
[353760462,1740015049428,-209.0,0.00014332,2]
[353760463,1740015049438,-209.0,0.00014332,2]
[353760464,1740015049448,-209.0,0.00014332,2]
[353760465,1740015049457,-209.0,0.00014332,2]
[353760466,1740015049467,-209.0,0.00014332,2]
[353760467,1740015049477,-209.0,0.00014332,2]
[353760468,1740015049486,-209.0,0.00014332,2]
[353760469,1740015049496,-209.0,0.00014332,2]
[353760470,1740015049507,-209.0,0.00014332,2]
[353760471,1740015049517,-209.0,0.00014332,2]
[353760472,1740015049527,-209.0,0.00014332,2]
[353760473,1740015049536,-209.0,0.00014332,2]
[353760474,1740015049545,-209.0,0.00014332,2]
[353760475,1740015049555,-209.0,0.00014332,2]
[353760476,1740015049564,-209.0,0.00014332,2]
[353760477,1740015049573,-209.0,0.00014332,2]
[353760478,1740015049583,-209.0,0.00014332,2]
[353760479,1740015049593,-209.0,0.00014332,2]
[353760480,1740015049602,-209.0,0.00014332,2]
[353760481,1740015049612,-209.0,0.00014332,2]
[353760482,1740015049622,-209.0,0.00014332,2]
[353760483,1740015049631,-209.0,0.00014332,2]
[353760484,1740015049641,-209.0,0.00014332,2]
[353760485,1740015049651,-209.0,0.00014332,2]
[353760486,1740015049661,-209.0,0.00014332,2]
[353760487,1740015049671,-209.0,0.00014332,2]
[353760488,1740015049682,-209.0,0.00014332,2]
[353760489,1740015049693,-209.0,0.00014332,2]
[353760490,1740015049702,-209.0,0.00014332,2]
[353760491,1740015049712,-209.0,0.00014332,2]
[353760492,1740015049721,-209.0,0.00014332,2]
[353760493,1740015049731,-209.0,0.00014332,2]
[353760494,1740015049741,-209.0,0.00014332,2]
[353760495,1740015049751,-209.0,0.00014332,2]
[353760496,1740015049762,-209.0,0.00014332,2]
[353760497,1740015049772,-209.0,0.00014332,2]
[353760498,1740015049782,-209.0,0.00014332,2]
[353760499,1740015049792,-209.0,0.00014332,2]
[353760500,1740015049802,-209.0,0.00014332,2]
[353760501,1740015049812,-209.0,0.00014332,2]
[353760502,1740015049821,-209.0,0.00014332,2]
[353760503,1740015049831,-209.0,0.00014332,2]
[353760504,1740015049840,-209.0,0.00014332,2]
[353760505,1740015049850,-209.0,0.00014332,2]
[353760506,1740015049859,-209.0,0.00014332,2]
[353760507,1740015049869,-209.0,0.00014332,2]
[353760508,1740015049879,-209.0,0.00014332,2]
[353760509,1740015049888,-209.0,0.00014332,2]
[353760510,1740015049898,-209.0,0.00014332,2]
[353760511,1740015049907,-209.0,0.00014332,2]
[353760512,1740015049917,-209.0,0.00014332,2]
[353760513,1740015049927,-209.0,0.00014332,2]
[353760514,1740015049936,-209.0,0.00014332,2]
[353760515,1740015049947,-209.0,0.00014332,2]
[353760516,1740015049956,-209.0,0.00014332,2]
[353760517,1740015049966,-209.0,0.00014332,2]
[353760518,1740015049976,-209.0,0.00014332,2]
[353760519,1740015049985,-209.0,0.00014332,2]
[353760520,1740015049995,-209.0,0.00014332,2]
[353760521,1740015050004,-209.0,0.00014332,2]
[353760522,1740015050014,-209.0,0.00014332,2]
[353760523,1740015050024,-209.0,0.00014332,2]
[353760524,1740015050033,-209.0,0.00014332,2]
[353760525,1740015050043,-209.0,0.00014332,2]
[353760526,1740015050053,-209.0,0.00014332,2]
[353760527,1740015050063,-209.0,0.00014332,2]
[353760528,1740015050073,-209.0,0.00014332,2]
[353760529,1740015050085,-209.0,0.00014332,2]
[353760530,1740015050094,-209.0,0.00014332,2]
[353760531,1740015050104,-209.0,0.00014332,2]
[353760532,1740015050113,-209.0,0.00014332,2]
[353760533,1740015050124,-209.0,0.00014332,2]
[353760534,1740015050133,-209.0,0.00014332,2]
[353760535,1740015050143,-209.0,0.00014332,2]
[353760536,1740015050152,-209.0,0.00014332,2]
[353760537,1740015050162,-209.0,0.00014332,2]
[353760538,1740015050172,-209.0,0.00014332,2]
[353760539,1740015050180,-209.0,0.00014332,2]
[353760540,1740015050190,-209.0,0.00014332,2]
[353760541,1740015050199,-209.0,0.00014332,2]
[353760542,1740015050209,-209.0,0.00014332,2]
[353760543,1740015050218,-209.0,0.00014332,2]
[353760544,1740015050228,-209.0,0.00014332,2]
[353760545,1740015050237,-209.0,0.00014332,2]
[353760546,1740015050247,-209.0,0.00014332,2]
[353760547,1740015050257,-209.0,0.00014332,2]
[353760548,1740015050266,-209.0,0.00014332,2]
[353760549,1740015050276,-153.0,0.00014332,2]
[353760550,1740015050284,-153.0,0.00014332,2]
[353760551,1740015050294,-153.0,0.00014332,2]
[353760552,1740015050303,-153.0,0.00014332,2]
[353760553,1740015050313,-153.0,0.00014332,2]
[353760554,1740015050322,-153.0,0.00014332,2]
[353760555,1740015050331,-153.0,0.00014332,2]
[353760556,1740015050341,-230.0,0.00014332,2]
[353760557,1740015050351,-230.0,0.00014332,2]
[353760558,1740015050361,-230.0,0.00014332,2]
[353760559,1740015050370,-230.0,0.00014332,2]
[353760560,1740015050379,-230.0,0.00014332,2]
[353760561,1740015050388,-230.0,0.00014332,2]
[353760562,1740015050397,-230.0,0.00014332,2]
[353760563,1740015050406,-230.0,0.00014332,2]
[353760564,1740015050415,-230.0,0.00014332,2]
[353760565,1740015050425,-230.0,0.00014332,2]
[353760566,1740015050435,-230.0,0.00014332,2]
[353760567,1740015050444,-230.0,0.00014332,2]
[353760568,1740015050453,-230.0,0.00014332,2]
[353760569,1740015050463,-230.0,0.00014332,2]
[353760570,1740015050473,-230.0,0.00014332,2]
[353760571,1740015050483,-230.0,0.00014332,2]
[353760572,1740015050493,-230.0,0.00014332,2]
[353760573,1740015050504,-230.0,0.00014332,2]
[353760574,1740015050513,-230.0,0.00014332,2]
[353760575,1740015050524,-230.0,0.00014332,2]
[353760576,1740015050533,-230.0,0.00014332,2]
[353760577,1740015050543,-230.0,0.00014332,2]
[353760578,1740015050553,-230.0,0.00014332,2]
[353760579,1740015050562,-230.0,0.00014332,2]
[353760580,1740015050571,-230.0,0.00014332,2]
[353760581,1740015050581,-230.0,0.00014332,2]
[353760582,1740015050590,-230.0,0.00014332,2]
[353760583,1740015050599,-230.0,0.00014332,2]
[353760584,1740015050609,-230.0,0.00014332,2]
[353760585,1740015050618,-230.0,0.00014332,2]
[353760586,1740015050627,-230.0,0.00014332,2]
[353760587,1740015050637,-230.0,0.00014332,2]
[353760588,1740015050647,-230.0,0.00014332,2]
[353760589,1740015050657,-230.0,0.00014332,2]
[353760590,1740015050667,-230.0,0.00014332,2]
[353760591,1740015050677,-230.0,0.00014332,2]
[353760592,1740015050686,-230.0,0.00014332,2]
[353760593,1740015050696,-230.0,0.00014332,2]
[353760594,1740015050705,-230.0,0.00014332,2]
[353760595,1740015050715,-230.0,0.00014332,2]
[353760596,1740015050725,-230.0,0.00014332,2]
[353760597,1740015050735,-230.0,0.00014332,2]
[353760598,1740015050745,-230.0,0.00014332,2]
[353760599,1740015050755,-230.0,0.00014332,2]
[353760600,1740015050764,-230.0,0.00014332,2]
[353760601,1740015050774,-230.0,0.00014332,2]
[353760602,1740015050784,-230.0,0.00014332,2]
[353760603,1740015050794,-230.0,0.00014332,2]
[353760604,1740015050804,-230.0,0.00014332,2]
[353760605,1740015050814,-230.0,0.00014332,2]
[353760606,1740015050823,-230.0,0.00014332,2]
[353760607,1740015050832,-230.0,0.00014332,2]
[353760608,1740015050842,-230.0,0.00014332,2]
[353760609,1740015050852,-230.0,0.00014332,2]
[353760610,1740015050862,-230.0,0.00014332,2]
[353760611,1740015050872,-230.0,0.00014332,2]
[353760612,1740015050882,-230.0,0.00014332,2]
[353760613,1740015050892,-230.0,0.00014332,2]
[353760614,1740015050902,-230.0,0.00014332,2]
[353760615,1740015050911,-230.0,0.00014332,2]
[353760616,1740015050922,-230.0,0.00014332,2]
[353760617,1740015050931,-230.0,0.00014332,2]
[353760618,1740015050941,-230.0,0.00014332,2]
[353760619,1740015050950,-230.0,0.00014332,2]
[353760620,1740015050962,-230.0,0.00014332,2]
[353760621,1740015050973,-230.0,0.00014332,2]
[353760622,1740015050983,-230.0,0.00014332,2]
[353760623,1740015050993,-230.0,0.00014332,2]
[353760624,1740015051002,-230.0,0.00014332,2]
[353760625,1740015051012,-230.0,0.00014332,2]
[353760626,1740015051116,-230.0,0.00014332,2]
[353760627,1740015051137,-230.0,0.00014332,2]
[353760628,1740015051147,-230.0,0.00014332,2]
[353760629,1740015051158,-230.0,0.00014332,2]
[353760630,1740015051167,-230.0,0.00014332,2]
[353760631,1740015051177,-230.0,0.00014332,2]
[353760632,1740015051186,-230.0,0.00014332,2]
[353760633,1740015051196,-230.0,0.00014332,2]
[353760634,1740015051206,-230.0,0.00014332,2]
[353760635,1740015051215,-230.0,0.00014332,2]
[353760636,1740015051225,-230.0,0.00014332,2]
[353760637,1740015051235,-230.0,0.00014332,2]
[353760638,1740015051245,-230.0,0.00014332,2]
[353760639,1740015051255,-230.0,0.00014332,2]
[353760640,1740015051264,-230.0,0.00014332,2]
[353760641,1740015051274,-230.0,0.00014332,2]
[353760642,1740015051284,-230.0,0.00014332,2]
[353760643,1740015051294,-230.0,0.00014332,2]
[353760644,1740015051304,-230.0,0.00014332,2]
[353760645,1740015051313,-230.0,0.00014332,2]
[353760646,1740015051323,-230.0,0.00014332,2]
[353760647,1740015051333,-230.0,0.00014332,2]
[353760648,1740015051342,-222.0,0.00014332,2]
[353760649,1740015051352,-222.0,0.00014332,2]
[353760650,1740015051361,-222.0,0.00014332,2]
[353760651,1740015051371,-445.0,0.00014332,2]
[353760652,1740015051380,-501.84831893,0.00014338,2]
[353760653,1740015051390,-501.84831893,0.00014338,2]
[353760654,1740015051399,-501.84831893,0.00014338,2]
[353760655,1740015051409,-501.84831893,0.00014338,2]
[353760656,1740015051419,-501.84831893,0.00014338,2]
[353760657,1740015051428,-501.84831893,0.00014338,2]
[353760658,1740015051437,-501.84831893,0.00014338,2]
[353760659,1740015051447,-501.84831893,0.00014338,2]
[353760660,1740015051457,-501.84831893,0.00014338,2]
[353760661,1740015051467,-501.84831893,0.00014338,2]
[353760662,1740015051476,-501.84831893,0.00014338,2]
[353760663,1740015051486,-501.84831893,0.00014338,2]
[353760664,1740015051495,-501.84831893,0.00014338,2]
[353760665,1740015051504,-501.84831893,0.00014338,2]
[353760666,1740015051514,-501.84831893,0.00014338,2]
[353760667,1740015051524,-501.84831893,0.00014338,2]
[353760668,1740015051534,-501.84831893,0.00014338,2]
[353760669,1740015051543,-501.84831893,0.00014338,2]
[353760670,1740015051553,-501.84831893,0.00014338,2]
[353760671,1740015051563,-501.84,0.00014338,2]
[353760672,1740015051573,-152.83551589,0.00014338,2]
[353760673,1740015051583,-152.83551589,0.00014338,2]
[353760674,1740015051592,-152.83551589,0.00014338,2]
[353760675,1740015051602,-152.83551589,0.00014338,2]
[353760676,1740015051612,-152.83551589,0.00014338,2]
[353760677,1740015051621,-152.83551589,0.00014338,2]
[353760678,1740015051631,-152.83551589,0.00014338,2]
[353760679,1740015051640,-152.83,0.00014338,2]
[353760680,1740015051650,-500.0,0.00014356,2]
[353760681,1740015051659,-500.0,0.00014356,2]
[353760682,1740015051668,-500.0,0.00014356,2]
[353760683,1740015051678,-500.0,0.00014356,2]
[353760684,1740015051687,-500.0,0.00014356,2]
[353760685,1740015051697,-561.78,0.00014356,2]
[353760686,1740015051706,-500.0,0.00014356,2]
[353760687,1740015051716,-500.0,0.00014356,2]
[353760688,1740015051726,-500.0,0.00014356,2]
[353760689,1740015051735,-500.0,0.00014356,2]
[353760690,1740015051744,-500.0,0.00014356,2]
[353760691,1740015051755,-500.0,0.00014356,2]
[353760692,1740015051764,-500.0,0.00014356,2]
[353760693,1740015051775,-500.0,0.00014356,2]
[353760694,1740015051784,-500.0,0.00014356,2]
[353760695,1740015051794,-13035.02,0.00014356,2]
[353760696,1740015051803,-500.0,0.00014356,2]
[353760697,1740015051812,-500.0,0.00014356,2]
[353760698,1740015051822,-500.0,0.00014356,2]
[353760699,1740015051832,-500.0,0.00014356,2]
[353760700,1740015051842,-500.0,0.00014356,2]
[353760701,1740015051852,-698.4,0.00014356,2]
[353760702,1740015051862,-545.02,0.00014356,2]
[353760703,1740015051871,-994.39,0.00014356,2]
[353760704,1740015051882,-1691.41,0.00014356,2]
[353760705,1740015051892,-1136.71,0.00014356,2]
[353760706,1740015051903,-500.0,0.00014356,2]
[353760707,1740015051913,-620.63,0.00014356,2]
[353760708,1740015051923,-500.0,0.00014356,2]
[353760709,1740015051934,-973.16,0.00014356,2]
[353760710,1740015051944,-500.0,0.00014356,2]
[353760711,1740015051953,-550.8,0.00014356,2]
[353760712,1740015051962,-513.7,0.00014356,2]
[353760713,1740015051971,-519.93,0.00014356,2]
[353760714,1740015051981,-4857.49,0.00014356,2]
[353760715,1740015051991,-500.0,0.00014356,2]
[353760716,1740015052001,-500.0,0.00014356,2]
[353760717,1740015052010,-1351.54,0.00014356,2]
[353760718,1740015052020,-1123.19,0.00014356,2]
[353760719,1740015052031,-500.0,0.00014356,2]
[353760720,1740015052040,-1431.71,0.00014356,2]
[353760721,1740015052050,-3706.13,0.00014356,2]
[353760722,1740015052060,-748.02,0.00014356,2]
[353760723,1740015052070,-500.0,0.00014356,2]
[353760724,1740015052081,-682.42,0.00014356,2]
[353760725,1740015052091,-428.26700122,0.00014368,2]
[353760726,1740015052101,-151.0,0.000144,2]
[353760727,1740015052111,-1253.040712,0.00014438,2]
[353760728,1740015052124,-1253.040712,0.00014438,2]
[353760729,1740015052135,-151.0,0.00014438,2]
[353760730,1740015052146,-749.756382,0.00014438,2]
[353760731,1740015052157,-749.756382,0.00014438,2]
[353760732,1740015052166,-367.515261,0.00014438,2]
[353760733,1740015052176,-367.515261,0.00014438,2]
[353760734,1740015052185,-500.0,0.00014438,2]
[353760735,1740015052195,-500.0,0.00014438,2]
[353760736,1740015052204,-500.0,0.00014438,2]
[353760737,1740015052214,-500.0,0.00014438,2]
[353760738,1740015052224,-500.0,0.00014438,2]
[353760739,1740015052234,-500.0,0.00014438,2]
[353760740,1740015052244,-500.0,0.00014438,2]
[353760741,1740015052254,-500.0,0.00014438,2]
[353760742,1740015052264,-500.0,0.00014438,2]
[353760743,1740015052274,-193.79,0.00014438,2]
[353760744,1740015052285,-313.63,0.00014438,2]
[353760745,1740015052294,-396.21096075,0.00014438,2]
[353760746,1740015052304,-500.0,0.00014438,2]
[353760747,1740015052313,-500.0,0.00014438,2]
[353760748,1740015052323,-13035.02,0.00014438,2]
[353760749,1740015052333,-500.0,0.00014438,2]
[353760750,1740015052342,-500.0,0.00014438,2]
[353760751,1740015052352,-500.0,0.00014438,2]
[353760752,1740015052362,-500.0,0.00014438,2]
[353760753,1740015052372,-500.0,0.00014438,2]
[353760754,1740015052382,-698.4,0.00014438,2]
[353760755,1740015052391,-545.02,0.00014438,2]
[353760756,1740015052401,-994.39,0.00014438,2]
[353760757,1740015052411,-1691.41,0.00014438,2]
[353760758,1740015052421,-1136.71,0.00014438,2]
[353760759,1740015052430,-500.0,0.00014438,2]
[353760760,1740015052440,-620.63,0.00014438,2]
[353760761,1740015052450,-157.65,0.00014438,2]
[353760762,1740015052459,-973.16,0.00014438,2]
[353760763,1740015052469,-500.0,0.00014438,2]
[353760764,1740015052479,-550.8,0.00014438,2]
[353760765,1740015052488,-513.7,0.00014438,2]
[353760766,1740015052498,-519.93,0.00014438,2]
[353760767,1740015052507,-4857.49,0.00014438,2]
[353760768,1740015052517,-500.0,0.00014438,2]
[353760769,1740015052527,-500.0,0.00014438,2]
[353760770,1740015052536,-1351.54,0.00014438,2]
[353760771,1740015052547,-1123.19,0.00014438,2]
[353760772,1740015052557,-500.0,0.00014438,2]
[353760773,1740015052566,-1431.71,0.00014438,2]
[353760774,1740015052577,-3706.13,0.00014438,2]
[353760775,1740015052587,-748.02,0.00014438,2]
[353760776,1740015052596,-500.0,0.00014438,2]
[353760777,1740015052606,-682.42,0.00014438,2]
[353760778,1740015052616,-151.0,0.000145,2]
[353760779,1740015052625,-103360.26767646,0.000145,2]
[353760780,1740015052634,-7167.0,0.000145,2]
[353760781,1740015052644,-475.11422602,0.00014504,2]
[353760782,1740015052653,-500.0,0.0001452,2]
[353760783,1740015052663,-206.3297401,0.0001452,2]
[353760784,1740015052672,-500.0,0.0001452,2]
[353760785,1740015052681,-500.0,0.0001452,2]
[353760786,1740015052690,-500.0,0.0001452,2]
[353760787,1740015052701,-500.0,0.0001452,2]
[353760788,1740015052711,-500.0,0.0001452,2]
[353760789,1740015052720,-500.0,0.0001452,2]
[353760790,1740015052730,-243.16,0.0001452,2]
[353760791,1740015052739,-13035.02,0.0001452,2]
[353760792,1740015052748,-500.0,0.0001452,2]
[353760793,1740015052758,-408.04799085,0.0001452,2]
[353760794,1740015052767,-500.0,0.0001452,2]
[353760795,1740015052778,-645.77,0.0001452,2]
[353760796,1740015052787,-500.0,0.0001452,2]
[353760797,1740015052796,-698.4,0.0001452,2]
[353760798,1740015052805,-545.02,0.0001452,2]
[353760799,1740015052815,-994.39,0.0001452,2]
[353760800,1740015052825,-1691.41,0.0001452,2]
[353760801,1740015052834,-1136.71,0.0001452,2]
[353760802,1740015052844,-500.0,0.0001452,2]
[353760803,1740015052854,-620.63,0.0001452,2]
[353760804,1740015052863,-973.16,0.0001452,2]
[353760805,1740015052873,-457.41,0.0001452,2]
[353760806,1740015052882,-550.8,0.0001452,2]
[353760807,1740015052892,-513.7,0.0001452,2]
[353760808,1740015052901,-519.93,0.0001452,2]
[353760809,1740015052911,-4857.49,0.0001452,2]
[353760810,1740015052920,-500.0,0.0001452,2]
[353760811,1740015052930,-500.0,0.0001452,2]
[353760812,1740015052941,-1351.54,0.0001452,2]
[353760813,1740015052950,-1123.19,0.0001452,2]
[353760814,1740015052961,-500.0,0.0001452,2]
[353760815,1740015052970,-1431.71,0.0001452,2]
[353760816,1740015052980,-3706.13,0.0001452,2]
[353760817,1740015052989,-748.02,0.0001452,2]
[353760818,1740015052999,-500.0,0.0001452,2]
[353760819,1740015053009,-682.42,0.0001452,2]
[353760820,1740015053018,-13275.53870192,0.00014556,2]
[353760821,1740015053028,-151.0,0.000146,2]
[353760822,1740015053037,-564.98,0.00014602,2]
[353760823,1740015053047,-558.28,0.00014602,2]
[353760824,1740015053057,-500.0,0.00014602,2]
[353760825,1740015053066,-500.0,0.00014602,2]
[353760826,1740015053077,-500.0,0.00014602,2]
[353760827,1740015053089,-500.0,0.00014602,2]
[353760828,1740015053099,-500.0,0.00014602,2]
[353760829,1740015053108,-13035.02,0.00014602,2]
[353760830,1740015053117,-500.0,0.00014602,2]
[353760831,1740015053128,-500.0,0.00014602,2]
[353760832,1740015053137,-500.0,0.00014602,2]
[353760833,1740015053146,-698.4,0.00014602,2]
[353760834,1740015053156,-545.02,0.00014602,2]
[353760835,1740015053165,-994.39,0.00014602,2]
[353760836,1740015053175,-1691.41,0.00014602,2]
[353760837,1740015053185,-1136.71,0.00014602,2]
[353760838,1740015053194,-500.0,0.00014602,2]
[353760839,1740015053204,-620.63,0.00014602,2]
[353760840,1740015053214,-973.16,0.00014602,2]
[353760841,1740015053224,-550.8,0.00014602,2]
[353760842,1740015053233,-513.7,0.00014602,2]
[353760843,1740015053243,-519.93,0.00014602,2]
[353760844,1740015053253,-4857.49,0.00014602,2]
[353760845,1740015053262,-500.0,0.00014602,2]
[353760846,1740015053272,-500.0,0.00014602,2]
[353760847,1740015053282,-1351.54,0.00014602,2]
[353760848,1740015053291,-1123.19,0.00014602,2]
[353760849,1740015053299,-500.0,0.00014602,2]
[353760850,1740015053309,-1431.71,0.00014602,2]
[353760851,1740015053319,-3706.13,0.00014602,2]
[353760852,1740015053329,-748.02,0.00014602,2]
[353760853,1740015053339,-500.0,0.00014602,2]
[353760854,1740015053435,-682.42,0.00014602,2]
[353760855,1740015053456,-345.42438499,0.00014621,2]
[353760856,1740015053465,-500.0,0.00014621,2]
[353760857,1740015053475,-428.26700122,0.00014629,2]
[353760858,1740015053483,-500.0,0.00014684,2]
[353760859,1740015053493,-500.0,0.00014684,2]
[353760860,1740015053502,-267.84,0.00014684,2]
[353760861,1740015053512,-500.0,0.00014684,2]
[353760862,1740015053521,-500.0,0.00014684,2]
[353760863,1740015053532,-13035.02,0.00014684,2]
[353760864,1740015053541,-500.0,0.00014684,2]
[353760865,1740015053551,-500.0,0.00014684,2]
[353760866,1740015053560,-500.0,0.00014684,2]
[353760867,1740015053570,-698.4,0.00014684,2]
[353760868,1740015053579,-545.02,0.00014684,2]
[353760869,1740015053588,-994.39,0.00014684,2]
[353760870,1740015053598,-1691.41,0.00014684,2]
[353760871,1740015053608,-1136.71,0.00014684,2]
[353760872,1740015053617,-500.0,0.00014684,2]
[353760873,1740015053627,-620.63,0.00014684,2]
[353760874,1740015053636,-973.16,0.00014684,2]
[353760875,1740015053646,-550.8,0.00014684,2]
[353760876,1740015053655,-513.7,0.00014684,2]
[353760877,1740015053665,-519.93,0.00014684,2]
[353760878,1740015053676,-4857.49,0.00014684,2]
[353760879,1740015053686,-500.0,0.00014684,2]
[353760880,1740015053696,-500.0,0.00014684,2]
[353760881,1740015053705,-1351.54,0.00014684,2]
[353760882,1740015053715,-1123.19,0.00014684,2]
[353760883,1740015053725,-500.0,0.00014684,2]
[353760884,1740015053735,-1431.71,0.00014684,2]
[353760885,1740015053744,-3706.13,0.00014684,2]
[353760886,1740015053754,-748.02,0.00014684,2]
[353760887,1740015053763,-500.0,0.00014684,2]
[353760888,1740015053773,-682.42,0.00014684,2]
[353760889,1740015053782,-2316.5004168,0.00014699,2]
[353760890,1740015053792,-151.0,0.000147,2]
[353760891,1740015053802,-557.1188801,0.00014712,2]
[353760892,1740015053811,-557.1188801,0.00014712,2]
[353760893,1740015053821,-557.1188801,0.00014712,2]
[353760894,1740015053831,-557.1188801,0.00014712,2]
[353760895,1740015053841,-557.1188801,0.00014712,2]
[353760896,1740015053851,-561.7097077,0.00014712,2]
[353760897,1740015053860,-1209.111,0.0001475,2]
[353760898,1740015053870,-172.025,0.0001475,2]
[353760899,1740015053879,-1253.040712,0.00014767,2]
[353760900,1740015053888,-1253.040712,0.00014767,2]
[353760901,1740015053898,-151.0,0.00014767,2]
[353760902,1740015053907,-749.756382,0.00014767,2]
[353760903,1740015053916,-749.756382,0.00014767,2]
[353760904,1740015053926,-367.515261,0.00014767,2]
[353760905,1740015053935,-367.515261,0.00014767,2]
[353760906,1740015053945,-500.0,0.00014767,2]
[353760907,1740015053954,-500.0,0.00014767,2]
[353760908,1740015053964,-500.0,0.00014767,2]
[353760909,1740015053974,-500.0,0.00014767,2]
[353760910,1740015053983,-13035.02,0.00014767,2]
[353760911,1740015053993,-500.0,0.00014767,2]
[353760912,1740015054003,-500.0,0.00014767,2]
[353760913,1740015054012,-500.0,0.00014767,2]
[353760914,1740015054022,-698.4,0.00014767,2]
[353760915,1740015054031,-545.02,0.00014767,2]
[353760916,1740015054041,-994.39,0.00014767,2]
[353760917,1740015054051,-1691.41,0.00014767,2]
[353760918,1740015054060,-1136.71,0.00014767,2]
[353760919,1740015054069,-500.0,0.00014767,2]
[353760920,1740015054082,-620.63,0.00014767,2]
[353760921,1740015054092,-973.16,0.00014767,2]
[353760922,1740015054102,-550.8,0.00014767,2]
[353760923,1740015054111,-513.7,0.00014767,2]
[353760924,1740015054122,-519.93,0.00014767,2]